Cogmind - Beta 15 @@@ ROGUE MODE // 2025.07.07 @ 23:23:07 Player: mEkbOk Result: Destroyed by HZ-60P(R) with Subdweller Laser Performance ------------- Evolutions (0) 0 Regions Visited (2) 400 Robots Destroyed (20) 100 Value Destroyed (490) 490 Prototype IDs (0) 0 Alien Tech Used (0) 0 Bonus (0) 0 TOTAL SCORE: 990 Bonus ------- None Cogmind --------- Core Integrity 0/250 Matter 196/300 Energy 100/100 System Corruption 0% Temperature Cool (6) Movement Walking (120) Location -10/Subcaves Parts ------- > --- POWER (1) -------- (None) > --- PROPULSION (2) --- Aluminum Leg Aluminum Leg > --- UTILITY (2) ------ Disposable Heat Sink Propulsion Shielding > --- WEAPON (2) ------- Battle Cannon Grenade Launcher > --- INVENTORY (5) ---- Small Storage Unit Mining Laser Peak State ------------ > --- POWER ------------ Ion Engine > --- PROPULSION ------- Aluminum Leg Aluminum Leg > --- UTILITY ---------- Disposable Heat Sink Propulsion Shielding > --- WEAPON ----------- Battle Cannon Grenade Launcher > --- INVENTORY -------- Small Storage Unit Mining Laser [Rating: 9] Favorites ----------- Power Light Ion Engine Engine Light Ion Engine Propulsion Light Treads Treads Light Treads Leg Aluminum Leg Utility Propulsion Shielding Device Heat Sink Storage Small Storage Unit Protection Propulsion Shielding Weapon Grenade Launcher Energy Gun Small Laser Ballistic Gun Assault Rifle Ballistic Cannon Battle Cannon Launcher Grenade Launcher Special Weapon Mining Laser Build | -11 -10 -10 ------- Run | Yrd Mat Sub Slots Evolved . | . . . Power . | . . . Propulsion . | . . . Utility . | . . . Weapon . | . . . Parts Attached 24 | 6 13 5 Power 5 | 1 3 1 Engine 5 | 1 3 1 Core . | . . . Reactor . | . . . Propulsion 4 | 2 . 2 Treads 2 | 2 . . Leg 2 | . . 2 Wheel . | . . . Hover . | . . . Flight . | . . . Utility 6 | 1 4 1 Device 3 | . 2 1 Storage 1 | 1 . . Processor . | . . . Hackware . | . . . Protection 2 | . 2 . Artifact . | . . . Weapon 9 | 2 6 1 Energy Gun 2 | . 2 . Energy Cannon . | . . . Ballistic Gun 3 | 2 1 . Ballistic Cannon 1 | . . 1 Launcher 1 | . 1 . Special Weapon 2 | . 2 . Impact Weapon . | . . . Slashing Weapon . | . . . Piercing Weapon . | . . . Special Melee Weapon . | . . . Unidentified Prototypes . | . . . Parts Lost 7 | . 4 3 Power 3 | . 1 2 Propulsion 1 | . . 1 Utility 1 | . 1 . Weapon 2 | . 2 . Highest Loss Streak 3 | . 3 1 To Critical Strikes 1 | . . 1 Average Backups 4 | 3 5 3 Power 1 | . 1 . Propulsion 1 | 1 2 1 Utility 1 | . 1 1 Weapon . | . . 1 Tool/Special . | . . . Unused Backups 1 | . . 1 Power . | . . . Propulsion . | . . . Utility 1 | . . 1 Weapon . | . . . Tool/Special . | . . . Average Slot Usage (%) 91 | . 95 86 Engine 12 | . 14 11 Treads 17 | . 24 9 Leg 3 | . . 8 Device 12 | . 10 14 Storage 4 | . 7 . Protection 11 | . 9 14 Ballistic Gun 11 | . 18 3 Ballistic Cannon 4 | . . 10 Launcher 6 | . 1 11 Special Weapon 4 | . 6 2 Peak Build Rating 9 | 6 7 9 Average Rating 6 | 4 6 7 On Entrance 4 | . 6 6 Naked Turns . | . . . Heaviest Build 14 | 10 14 13 Greatest Support 40 | 40 40 20 Greatest Overweight (x) 4 | . . 4 Average Overweight (x) . | . . . Largest Inventory Capacity 8 | 8 8 5 Average Capacity 5 | 6 6 5 Most Carried 8 | 5 8 5 Average Carried 4 | 3 5 3 Final Capacity 8 | 8 5 5 Final Carried 5 | 4 5 2 Class Distribution -------------------- 100% | Mutant Dominant Class ---------------- Mutant | -10/Materials Mutant | -10/Subcaves Resources | -11 -10 -10 ----------- Run | Yrd Mat Sub Matter Collected 729 | 260 263 206 Remotely . | . . . Salvage Created 353 | . 222 131 Parts 31 | . 16 15 Haulers Intercepted . | . . . Recyclers Shooed . | . . . Parts Field Recycled . | . . . Retrieved Matter . | . . . Parts Self-Destructed 5 | . . 5 Prevented . | . . . Kills | -11 -10 -10 ------- Run | Yrd Mat Sub Combat Hostiles Destroyed 20 | . 12 8 Guns 6 | . 6 . Cannons 7 | . 6 1 AOE 7 | . . 7 Classes Destroyed 3 | . 2 1 Swarmer 10 | . 6 4 Grunt 6 | . 6 . Subdweller 4 | . . 4 Best Kill Streak 4 | . 4 3 Combat Bots Only 4 | . 4 3 Max Kills in Single Turn 2 | . 1 2 Gunslinging . | . . . Exploded 2 | . . 2 Melee . | . . . Uniques/NPCs Destroyed . | . . . Combat | -11 -10 -10 -------- Run | Yrd Mat Sub Hostile Shots Fired 136 | . 90 46 Missed 44 | . 25 19 Hits 92 | . 65 27 Projectile 92 | . 65 27 Critical Strikes 2 | . 1 1 Damage Taken 1198 | . 713 485 Core 271 | . 149 122 Absorbed by Shields . | . . . Redirected to Shielding 30 | . . 30 Core Remaining (%) 100 | 100 . . Volleys Fired 107 | . 82 25 Largest 2 | . 2 2 Hottest 140 | . 140 133 Shots Fired 192 | . 147 45 Gun 144 | . 134 10 Cannon 15 | . . 15 Launcher 14 | . . 14 Special 19 | . 13 6 Kinetic 134 | . 109 25 Thermal 33 | . 27 6 Explosive 14 | . . 14 Electromagnetic 11 | . 11 . Robot Hit Streak 9 | . 9 5 Robot Miss Streak 6 | . 6 3 Penetration Max . | . . . Secondary Targets 3 | . 3 . Max Gunslinging Chain 1 | . 1 . Shots Hit Robots 58 | . 46 12 Core Hits 31 | . 19 12 Critical Kills . | . . . Critical Parts Destroyed . | . . . Critical Strikes . | . . . Melee Attacks . | . . . Impact . | . . . Slashing . | . . . Piercing . | . . . Sneak Attacks . | . . . Combat Hostiles . | . . . Follow-up Attacks . | . . . Damage Inflicted 1311 | . 695 616 Guns 464 | . 407 57 Cannons 61 | . . 61 Explosions 498 | . . 498 Melee . | . . . Ramming . | . . . Kinetic 383 | . 265 118 Thermal 365 | . 365 . Explosive 498 | . . 498 Electromagnetic 65 | . 65 . Impact . | . . . Slashing . | . . . Piercing . | . . . Highest Corruption . | . . . Average Corruption . | . . . Corruption Purged . | . . . Corruption Blocked . | . . . Overload Shots . | . . . Overflow Damage 8 | . 8 . Projectiles 8 | . 8 . Explosions . | . . . Melee . | . . . Knockbacks . | . . . Impact . | . . . Kinetic . | . . . Secondary . | . . . Self-Inflicted Damage 67 | . . 67 Shots 4 | . . 4 Rammed . | . . . Targets Rammed . | . . . Kicked . | . . . Crushed . | . . . Highest Temperature 204 | . 204 . Average Temperature 100 | . 100 . Received Heat Transfer 336 | . 276 60 Siege Activations . | . . . Martial Activations . | . . . Shielding Activations . | . . . Robots Disrupted . | . . . Combat Hostiles . | . . . Robots Corrupted . | . . . Combat Hostiles . | . . . Parts Fried . | . . . Impact Corruptions . | . . . Robots Melted . | . . . Combat Hostiles . | . . . Parts Melted . | . . . Heat Transferred 775 | . 775 . Parts Sabotaged . | . . . Parts Stolen . | . . . Parts Stripped . | . . . Power Chain Reactions . | . . . Alert | -11 -10 -10 ------- Run | Yrd Mat Sub Maximum Alert Level . | . . . Low Security (%) 100 | 100 100 . Level 1 . | . . . Level 2 . | . . . Level 3 . | . . . Level 4 . | . . . Level 5 . | . . . High Security . | . . . Max Security . | . . . Peak Influence 115 | . 115 . Initial . | . . . Average 25 | . 28 . Influence Increases 490 | . 350 140 Destroy 0b10 Robot/C 320 | . 240 80 Destroy Leader 50 | . 50 . Successful Hack 45 | . 45 . Lose Combat Pursuer 75 | . 15 60 Influence Decreases 484 | . 350 134 Time Decay 444 | . 330 114 Lost Part 40 | . 20 20 Squads Dispatched 1 | . 1 . Investigation . | . . . Extermination . | . . . Reinforcement 1 | . 1 . Assault . | . . . Garrison . | . . . Intercept . | . . . Searches Triggered . | . . . Construction Impeded . | . . . Haulers Reinforced . | . . . Active Scanning Responses . | . . . Cargo Convoy Interrupts . | . . . Stealth | -11 -10 -10 --------- Run | Yrd Mat Sub Distress Signals 2 | . 2 . Communications Jammed . | . . . Distress Signals . | . . . Times Spotted 39 | . 28 11 Peak Tracking Total 5 | . 5 5 Tactical Retreats 2 | . 1 1 Traps | -11 -10 -10 ------- Run | Yrd Mat Sub Traps Triggered 1 | . . 1 Indirectly . | . . . Trap Hack Attempts . | . . . Triggered . | . . . Disarmed . | . . . Reprogrammed . | . . . Reused . | . . . Traps Extracted . | . . . Installed . | . . . Triggered . | . . . Machines | -11 -10 -10 ---------- Run | Yrd Mat Sub Machines Disabled . | . . . Max in Single Turn . | . . . Machines Repaired . | . . . Machines Dismantled . | . . . Machines Sabotaged . | . . . Overloaded Fab Kills . | . . . Hacking | -11 -10 -10 --------- Run | Yrd Mat Sub Machines Accessed 9 | . 9 . Terminals 6 | . 6 . Fabricators . | . . . Repair Stations 1 | . 1 . Recycling Units 2 | . 2 . Scanalyzers . | . . . Garrison Access . | . . . Total Hacks 22 | . 22 . Successful 14 | . 14 . Failed 8 | . 8 . Catastrophic 1 | . 1 . Database Lockouts . | . . . Manual 11 | . 11 . Terminals 14 | . 14 . Fabricators . | . . . Repair Stations 4 | . 4 . Recycling Units 4 | . 4 . Scanalyzers . | . . . Garrison Access . | . . . Terminal Hacks 6 | . 6 . Terminal Index 1 | . 1 . Recycling Unit Index 1 | . 1 . Scanalyzer Index 1 | . 1 . Locate Traps 3 | . 3 . Fabricator Hacks . | . . . Repair Station Hacks 1 | . 1 . Scan Component 1 | . 1 . Recycling Unit Hacks 3 | . 3 . Report Inventory 2 | . 2 . Retrieve Components 1 | . 1 . Scanalyzer . | . . . Garrison Access Hacks . | . . . Unauthorized Hacks 4 | . 4 . Terminals 4 | . 4 . Track 4 | . 4 . Fabricators . | . . . Repair Stations . | . . . Recycling Units . | . . . Scanalyzers . | . . . Garrison Access . | . . . Data Cores Recovered . | . . . Used . | . . . Hacking Detections 8 | . 8 . Full Trace Events 2 | . 2 . Feedback Events . | . . . Feedback Blocked . | . . . Robot Schematics Acquired . | . . . Robots Built . | . . . Authchips . | . . . Time . | . . . Total Robot Build Rating . | . . . Part Schematics Acquired . | . . . Parts Built . | . . . Authchips . | . . . Time . | . . . Total Part Build Rating . | . . . Parts Repaired . | . . . Time . | . . . Parts Recycled . | . . . Recycled Matter . | . . . Retrieved Matter . | . . . Retrieved Components 7 | . 7 . Parts Scanalyzed . | . . . Part Schematics Acquired . | . . . Parts Damaged . | . . . Bothacking | -11 -10 -10 ------------ Run | Yrd Mat Sub Used RIF Installer . | . . . Robots Hacked . | . . . Non-combat . | . . . Combat . | . . . Robot Hacks Applied . | . . . Relay Couplers Released . | . . . Fabnet Peak Effective % . | . . . Robots Rewired . | . . . Allies Hacked . | . . . Hacks Repelled . | . . . Allies | -11 -10 -10 -------- Run | Yrd Mat Sub Total Allies . | . . . Largest Group . | . . . Highest-Rated Group . | . . . Highest-Rated Ally . | . . . Total Orders . | . . . Ally Attacks . | . . . Total Damage . | . . . Kills . | . . . Allies Corrupted . | . . . Allies Melted . | . . . Intel | -11 -10 -10 ------- Run | Yrd Mat Sub Active Infowar (turns) 240 | . 240 . ECM 240 | . 240 . Robot Analysis Total . | . . . Derelict Logs Recovered 2 | . . 2 Drone Launches . | . . . Drone Recoveries . | . . . Exploration | -11 -10 -10 ------------- Run | Yrd Mat Sub Turns Passed 2917 | 127 1483 1307 Spaces Moved 1587 | 74 685 828 Core 7 | 6 . 1 Treads 1297 | 68 685 544 Legs 283 | . . 283 Wheels . | . . . Hover . | . . . Flight . | . . . Fastest Speed 50 | 50 160 120 Average Speed 152 | 151 160 146 Slowest Speed 250 | 160 160 250 Overloaded Moves . | . . . Propulsion Burnouts . | . . . Robots Hopped . | . . . Potential Cave-ins . | . . . Cave-ins Triggered . | . . . Exploration Rate (%) 54 | 5 97 60 Regions Visited 2 Branch Regions 1 Pre-discovered Areas . | . . . Known Exits Taken . | . . . Unknown Exits Taken 2 | 1 1 . Scrap Searched . | . . . Spaces Dug . | . . . Terrain Destroyed 76 | . . 76 Melee . | . . . Projectile 2 | . . 2 AOE 74 | . . 74 Terrain Rammed . | . . . Walls Destroyed . | . . . Machines Disabled . | . . . Actions | -11 -10 -10 --------- Run | Yrd Mat Sub Total 1870 | 89 919 862 Wait 115 | . 115 . Move 1585 | 73 684 828 Hop . | . . . Pick Up 22 | 10 12 . Fast Attach 4 | . 2 2 Attach 14 | 6 5 3 Detach 1 | . 1 . Swap 10 | . 8 2 Drop 12 | . 10 2 Fire 107 | . 82 25 Melee . | . . . Ram . | . . . Kick . | . . . Crush . | . . . Escape Stasis . | . . . Rewire . | . . . Trap . | . . . Miscellaneous . | . . . Route ------- -11/Scrapyard -10/Materials (discovered 6 exits: [*Mat x3] / [*Min x2] / [*Sub]) -10/Subcaves (discovered 2 exits: [*Mat] / Rec) History --------- Turn | Location | Event 4 | -11/Scrapyard | Discovered new exit (range 16) 128 | -11/Scrapyard | Entered Materials 229 | -10/Materials | Discovered new exit (range 16) 314 | -10/Materials | Build established: Mutant 470 | -10/Materials | Discovered new exit (range 14) 653 | -10/Materials | Discovered new exit (range 10) 799 | -10/Materials | Core integrity fell below 50% 813 | -10/Materials | Lost 3 parts (1u2w) 1031 | -10/Materials | Discovered new exit (range 7) 1411 | -10/Materials | Discovered new exit (range 15) 1597 | -10/Materials | Discovered new exit (range 10) 1611 | -10/Materials | Entered Subcaves 1889 | -10/Subcaves | Shifting Twisted Machinery released Battle Cannon 1912 | -10/Subcaves | Shifting Twisted Machinery released Sub. Monowheel 2147 | -10/Subcaves | Disturbed a concealed Subdweller 2416 | -10/Subcaves | Identified exit to Recycling 2416 | -10/Subcaves | Discovered new exit (range 14) 2508 | -10/Subcaves | Core integrity fell below 20% 2597 | -10/Subcaves | Learned Materials terminal intel 2690 | -10/Subcaves | A swath of the cavern ceiling suddenly collapsed 2918 | -10/Subcaves | Destroyed by HZ-60P(R) with Subdweller Laser Last Messages --------------- 02534_ Flight Unit fries itself beyond repair. 02536_ Acquired 3 matter. 02597_ Acquired derelict log, extracted data. Data stored: Materials terminal intel. 02656_ S-10 Pest destroyed. 02660_ Flight Unit fries itself beyond repair. 02665_ Acquired 8 matter. 02674_ Acquired 13 matter. A swath of the cavern ceiling suddenly collapses. 02757_ Acquired 58 matter. 02758_ Acquired 13 matter. 02761_ Acquired 12 matter. 02769_ Acquired 10 matter. 02769_ Triggered Piercing Trap. 02769_ Spikes shoot up from the floor. 02769_ Critical hit (Impale). 02900_ The unstable cave ceiling collapses. 02907_ Critical hit (Destroy). 02907_ Ion Engine destroyed. 02916_ IJ-YA7(R) destroyed. Map ----- +----------------------------------------------------+ | ?????????????????????????????????????????????????? | | ?????????????????????????????????????????????????? | | ?????????????????????????????????????????????????? | | ?????????????????????????????????????????????????? | | ???????????????????????????????????##????????????? | | ???????????????????????????????????# #???????????? | | ??????????????????????????????????? ???????????? | | ?????????????????????????????????? ? ???????????? | | ?????????????????????????????????? ###????????? | | ?????????????????????????????????? ? #????????? | | ???????????????????????????????# ? ????????? | | ?????????????????????????????#"""""""? #????????? | | ???????????????????????????? " ? #????????? | | ???????????????????????????? " ?# ###??????? | | ?????????????????????????????? " ## ##?????? | | ????????????????????????????? """ #?????? | | ?????????????????????????????? """ #??????? | | ????????????????????????????? "" ##??????? | | ?????????????????????????????# "### #??????? | | ?????????????????????????????# #?## #??????? | | ?????????????????????????????? ?## #??????? | | ??????????????????????????????" ?# ##??????? | | ??????????????????????????????#" ### ##???????? | | ????????????????????????###???#" ## ##??#?????? | | ????????????????????????# ##??#""## ##### #?????? | | ????????????????????????#@ ##?# "" ## #?????? | | ???????????????????????## ### #?????? | | ???????????????????????# R% ##?????? | | ???????????????????????# *& ###??????? | | ???????????????????????### #????????? | | ???????????????????????### #????????? | | ##?????????####????????# #????????? | | ########### ##???????# ######????????? | | ## #???????##### ## #??#####??????? | | #? #???????????##### #? #??????? | | ## #?# ##??????????????# ;# #??????? | | ## #?# ##??????####???# ##?????? | | # ##?# ### #??????# #??## #?????? | | # ##??#### ##?????# #### #?????? | | # #???# ##????# ## ## #?????? | | #???# #????# #?# #???#?????? | | # #??## ### #???## ##?# #????????? | | # ##### #?# ##?## ######????????? | | # # # #?# ### # ##?####?????? | | #?## ### #?# #?????? | | ##??### # #?### ### #?????? | | ## #"# ##?????## ####???## ## #?????? | | ?########???????### ##???????## #?????? | | ??????????????????#########?????????# ##?????? | | ????????????????????????????????????# ##??????? | +----------------------------------------------------+ Best States ------------- Heat Dissipation 35 Coolant Potential 50 Energy Generation 10 Energy Capacity 250 Matter Stores 300 Matter Capacity 300 Sight Range 16 Terrain Scan Density 10 ECM Strength 1 Armor Coverage 150 Propulsion Shielding 33 Evasion (%) 55 Recoil Reduction 2 Item Schematics ----------------- None Robot Schematics ------------------ None Fabricated ------------ Nothing Repaired ---------- Nothing Alien Tech Used ----------------- None Achievements -------------- None Challenges ------------ None Game ------ Seed MomentumAntimissileTrident Manual? 0 Play Time 00:23:34 Cumulative 23.5 hours Start 2025.07.07 @ 22:58:22 End 2025.07.07 @ 23:23:07 Sessions 1 Manual Loads 0 Difficulty Rogue Special Mode None Game No. 21 Rogue 21 Adventurer 0 Explorer 0 Win Type - Total 0 Types 0/0/0/0/0/0/0/0/0/0 Lore% 24 Gallery% 19 Achievement% 19 Wizard Run 0 Options --------- Layout 0 ASCII 0 Keyboard 0 Movement Mouse Keybinds 0 Fullscreen 2 Font 24/Smallcaps Map View 76x50 Zoom Use 0% Tactical HUD 1 Map Filters NONE Filters NONE Steam 1 RUN: 9899097e-451d-4c23-a452-c02e83f3973a